{"text_format":"1","workbook":"xlsx","n_sheets":7,"sheets":["Титул","Сводные","План уч проц","Лист3","Перечень кабинетов","Календарный график","Лист1"],"not_rendered":{"charts":0,"images":0,"macros":1,"external_links":1,"defined_names":24,"comments":0,"pivot_tables":0},"unopened":[],"bounds":{"document_bytes":16777216,"sheet_cells":100000,"rows_first":2000,"rows_last":500,"rows_between":2000,"halvings":0,"cell_chars":16384,"cell_head_chars":4096},"cells_cut":0,"cells_raw":0,"read":"whole","date_system":"1900"}

{"sheet":"Титул","index":0,"n_rows":30,"n_cols":47,"rows_kept":30,"cut":false,"hidden":false,"merged":[[27,26,27,37],[27,44,27,46],[27,42,27,43],[27,39,27,40],[10,9,10,40],[15,11,15,37],[16,11,16,37],[9,2,9,44],[24,26,24,45],[26,26,26,34],[26,35,26,45],[15,5,15,8],[29,30,29,43],[3,36,3,46],[2,36,2,45],[1,36,1,45],[18,9,18,36],[23,26,23,33],[23,34,23,45],[4,36,4,46],[5,37,5,38],[5,43,5,44],[7,14,7,24],[8,1,8,42],[28,26,28,29],[28,30,28,46],[25,26,25,45],[5,40,5,42]]}
[]
[null,null,null,null,null,null,null,null,null,null,null,null,null,null,null,null,null,null,null,null,null,null,null,null,null,null,null,null,null,null,null,null,null,null,null,null,"Утверждаю:"]
[null,null,null,null,null,null,null,null,null,null,null,null,null,null,null,null,null,null,null,null,null,null,null,null,null,null,null,null,null,null,null,null,null,null,null,null,"Директор ______________"]
[null,null,null,null,null,null,null,null,null,null,null,null,null,null,null,null,null,null,null,null,null,null,null,null,null,null,null,null,null,null,null,null,null,null,null,null,"ГБОУ СПО \"МППК\""]
[null,null,null,null,null,null,null,null,null,null,null,null,null,null,null,null,null,null,null,null,null,null,null,null,null,null,null,null,null,null,null,null,null,null,null,null,"М.Н. Верхотурцев"]
[null,null,null,null,null,null,null,null,null,null,null,null,null,null,null,null,null,null,null,null,null,null,null,null,null,null,null,null,null,null,null,null,null,null,null,null,"«",7,null,"»","июня",null,null,201,null,3,"г"]
[]
[null,null,null,null,null,null,null,null,null,null,null,null,null,null,"УЧЕБНЫЙ ПЛАН"]
[null,"Государственного образовательного учреждения среднего профессионального образования "]
[null,null,"«Мишкинский профессионально-педагогический колледж»"]
[null,null,null,null,null,null,null,null,null,"по  специальности среднего профессионального образования"]
[]
[]
[]
[]
[null,null,null,null,null,230701,null,null,null,null,null,"Прикладная информатика (по отраслям)"]
[]
[]
[null,null,null,null,null,null,null,null,null,"          по программе базовой подготовки"]
[]
[]
[]
[]
[null,null,null,null,null,null,null,null,null,null,null,null,null,null,null,null,null,null,null,null,null,null,null,null,null,null,"Квалификация:",null,null,null,null,null,null,null,"техник-программист"]
[]
[]
[null,null,null,null,null,null,null,null,null,null,null,null,null,null,null,null,null,null,null,null,null,null,null,null,null,null,"Форма обучения-  ",null,null,null,null,null,null,null,null,"очная"]
[null,null,null,null,null,null,null,null,null,null,null,null,null,null,null,null,null,null,null,null,null,null,null,null,null,null,"Нормативный срок обучения- ",null,null,null,null,null,null,null,null,null,null,null,null,3,null,"г",10,null,"мес"]
[null,null,null,null,null,null,null,null,null,null,null,null,null,null,null,null,null,null,null,null,null,null,null,null,null,null,"На базе",null,null,null,"основного общего образования"]
[null,null,null,null,null,null,null,null,null,null,null,null,null,null,null,null,null,null,null,null,null,null,null,null,null,null,"Профиль",null,null,null,"Технический"]

{"sheet":"Сводные","index":1,"n_rows":11,"n_cols":9,"rows_kept":11,"cut":false,"hidden":false,"merged":[[2,7,4,7],[2,8,4,8],[3,3,4,3],[0,0,0,8],[2,0,4,0],[2,1,4,1],[2,2,4,2],[2,3,2,4],[2,5,4,5],[2,6,4,6]]}
["Сводные данные по бюджету времени (в неделях)"]
[]
["Курсы","Обучение по дисциплинам и междисциплинарным курсам","Учебная практика","Производственная практика",null,"Промежуточная аттестация","Государственная итоговая аттестация","Каникулы","Всего"]
[null,null,null,"по профилю специальности","преддипломная"]
[null,null,null,null,"(для СПО)"]
[1,2,3,4,5,6,7,8,9]
["I курс",{"$f":"I7-H7-G7-F7-E7-D7-C7","v":39},null,null,null,2,null,11,52]
["II курс",{"$f":"I8-H8-G8-F8-E8-D8-C8","v":38},1,1,null,1,null,11,52]
["III курс",30,6,4,null,2,null,10,52]
["VI курс",26,1,2,4,2,6,2,43]
["Всего",{"$f":"SUM(B7:B10)","v":133},8,7,4,7,6,34,199]

{"sheet":"План уч проц","index":2,"n_rows":87,"n_cols":20,"rows_kept":87,"cut":false,"hidden":false,"merged":[[82,8,83,11],[82,12,83,12],[82,13,83,13],[82,14,83,14],[82,15,83,15],[79,19,80,19],[82,16,83,16],[82,17,83,17],[82,18,83,18],[82,19,83,19],[6,18,6,19],[2,12,5,19],[84,8,84,11],[85,8,85,11],[86,0,86,6],[79,7,86,7],[84,0,84,6],[85,0,85,6],[82,0,82,6],[86,8,86,11],[79,8,80,11],[83,0,83,6],[79,15,80,15],[79,16,80,16],[79,17,80,17],[79,18,80,18],[6,12,6,13],[6,14,6,15],[6,16,6,17],[79,12,80,12],[79,13,80,13],[79,14,80,14],[2,1,7,1],[2,5,5,10],[6,7,6,10],[7,8,7,10],[2,11,11,11],[8,6,11,6],[8,9,11,9],[8,10,11,10],[6,5,7,5],[6,6,7,6],[1,2,1,13],[75,0,75,1],[81,0,81,6],[79,0,80,6],[8,7,11,7],[8,8,11,8],[8,5,11,5],[76,0,76,1],[81,8,81,11],[2,0,7,0],[8,0,11,0],[8,1,11,1],[8,4,11,4],[8,3,11,3],[8,2,11,2],[2,2,6,4]]}
[]
[null,null,"230701 Прикладная информатика (по отраслям)",null,null,null,null,null,null,null,null,null,null,null,null,null,null,null,"Технич"]
["   Индекс","Наименование циклов, дисциплин, профессиональных модулей, МДК, практик","Форма промежуточной аттестации",null,null,"Учебная нагрузка обучающихся (час.)",null,null,null,null,null,"Учебная и производственная практика","Распределение обязательной нагрузки по курсам и семестрам[2] (час. в семестр)"]
[]
[]
[]
[null,null,null,null,null,"максимальная","самостоятельная работа","Обязательная аудиторная",null,null,null,null,"I курс",null,"II курс",null,"III курс",null,"IV курс"]
[null,null,"З","ДЗ","Э",null,null,"всего занятий","в т. ч.",null,null,null,"1 семестр","2 семестр","3 семестр","4 семестр","5 семестр","6 семестр","7 семестр","8 семестр"]
[null,null,null,null,null,null,null,null,"лекций, уроков, семинаров","лаб. и практ. занятий","Курсовая",null,"сем.","сем.","сем.","сем.","сем.","сем.","сем.","сем."]
[null,null,null,null,null,null,null,null,null,null,null,null,17,24,17,23,16,24,16,17]
[null,null,null,null,null,null,null,null,null,null,null,null,17,22,17,21,10,20,16,10]
[null,null,null,null,null,null,null,null,null,null,null,null,"нед","нед","нед","нед","нед","нед","нед","нед"]
[1,2,3,4,5,6,7,8,9,10,11,12,13,14,15,16,17,18,19,20]
["О.00","Общеобразовательный цикл",null,null,null,{"$f":"SUM(F15:F26)","v":0},0,{"$f":"SUM(H15:H26)","v":1404},null,null,null,null,{"$f":"SUM(M15:M26)","v":612},{"$f":"SUM(N15:N26)","v":792},{"$f":"SUM(O15:O75)/O10","v":146.29411764705881},{"$f":"SUM(P15:P75)/P10","v":140.82608695652175},{"$f":"SUM(Q15:Q75)/Q10","v":111.625},{"$f":"SUM(R15:R75)/R10","v":140.16666666666666},{"$f":"SUM(S15:S75)/S10","v":138},{"$f":"(SUM(T15:T75)+144)/T10","v":100.70588235294117}]
["ОДБ.01","Русский язык",null,null,2,null,null,{"$f":"SUM(M15:R15)","v":78},null,null,null,null,34,44]
["ОДБ.02","Литература",null,2,null,null,null,{"$f":"SUM(M16:R16)","v":117},null,null,null,null,51,66]
["ОДБ.03","Иностранный язык",null,2,null,null,null,117,null,null,null,null,51,66]
["ОДБ.04","История",null,2,null,null,null,78,null,null,null,null,34,44]
["ОДБ.05","Обществознание (включая экономику и право)",null,2,null,null,null,78,null,null,null,null,34,44]
["ОДБ.06","Химия",null,2,null,null,null,78,null,null,null,null,34,44]
["ОДБ.07","Биология",null,2,null,null,null,78,null,null,null,null,34,44]
["ОДБ.08","Основы безопасности жизнедеятельности ",null,2,null,null,null,78,null,null,null,null,34,44]
["ОДБ.09","Физическая культура",1.2,null,null,null,null,117,null,null,null,null,51,66]
["ОДП.01","Математика",null,null,2,null,null,234,null,null,null,null,102,132]
["ОДП.02","Физика",null,null,2,null,null,195,null,null,null,null,85,110]
["ОДП.03","Информатика и ИКТ",null,2,null,null,null,156,null,null,null,null,68,88]
[null,"Всего по циклам",null,null,null,{"$f":"F28+F33+F36","v":5078},{"$f":"F27-H27","v":1694},{"$f":"H28+H33+H36","v":3384},{"$f":"I28+I33+I36","v":1744},{"$f":"J28+J33+J36","v":1640},null,null,null,null,{"$f":"O28+O33+O36","v":612},{"$f":"P28+P33+P36","v":756},360,720,576,360]
["ОГСЭ.00","Общий гуманитарный и социально-экономический цикл ",null,null,null,{"$f":"SUM(F29:F32)","v":708},{"$f":"SUM(G29:G32)","v":236},472,{"$f":"SUM(I29:I32)","v":98},{"$f":"SUM(J29:J32)","v":374},null,null,null,null,{"$f":"SUM(O29:O32)","v":68},{"$f":"SUM(P29:P32)","v":84},40,80,160,40]
["ОГСЭ.01","Основы философии",null,null,7,54,6,{"$f":"SUM(O29:T29)","v":48},48,null,null,null,null,null,null,null,null,null,48]
["ОГСЭ.02","История",null,7,null,54,6,{"$f":"SUM(O30:T30)","v":48},48,null,null,null,null,null,null,null,null,null,48]
["ОГСЭ.03","Иностранный язык",3.8,null,null,224,36,{"$f":"SUM(O31:T31)","v":188},null,188,null,null,null,null,34,42,20,40,32,20]
["ОГСЭ.04","Физическая культура","3,4,5,6,7,8",null,null,376,{"$f":"F32-H32","v":188},{"$f":"SUM(O32:T32)","v":188},2,186,null,null,null,null,34,42,20,40,32,20]
["ЕН.00","Математический и общий естественнонаучный цикл",null,null,null,{"$f":"SUM(F34:F35)","v":351},{"$f":"SUM(G34:G35)","v":117},{"$f":"SUM(H34:H35)","v":234},{"$f":"SUM(I34:I35)","v":124},{"$f":"SUM(J34:J35)","v":110},null,null,null,null,{"$f":"SUM(O34:O35)","v":127},{"$f":"SUM(P34:P35)","v":67},20,20,0,0]
["ЕН.01","Математика",3,null,4,{"$f":"ROUNDDOWN(H34*1.5,0)","v":228},{"$f":"F34-H34","v":76},{"$f":"SUM(O34:T34)","v":152},84,68,null,null,null,null,127,25]
["ЕН.02","Дискретная математика",null,6,null,123,{"$f":"F35-H35","v":41},{"$f":"SUM(O35:T35)","v":82},40,42,null,null,null,null,null,42,20,20]
["П.00","Профессиональный цикл ",null,null,null,{"$f":"F37+F55","v":4019},{"$f":"G37+G55","v":1341},2678,1522,1156,null,null,null,null,{"$f":"O37+O55","v":417},{"$f":"P37+P55","v":605},300,620,416,320]
["ОП.00","Общепрофессиональные дисциплины",null,null,null,{"$f":"SUM(F38:F54)","v":2097},{"$f":"SUM(G38:G54)","v":701},1396,874,522,null,null,null,null,{"$f":"SUM(O38:O54)","v":183},{"$f":"SUM(P38:P54)","v":311},110,180,352,260]
["ОП.01","Экономика организации",null,8,null,69,23,{"$f":"SUM(O38:T38)","v":46},34,12,null,null,null,null,null,null,null,null,16,30]
["ОП.02","Теория вероятностей и математическая статистика",null,7,null,108,36,72,38,34,null,null,null,null,null,null,null,40,32]
["ОП.03","Менеджмент",null,7,null,72,8,64,40,24,null,null,null,null,null,null,null,null,64]
["ОП.04","Документационное обеспечение управления",null,3,null,51,17,34,14,20,null,null,null,null,34]
["ОП.05","Правовое обеспечение профессиональной деятельности",4,null,null,110,62,48,34,14,null,null,null,null,17,21,10]
["ОП.06","Основы теории информации",null,6,null,153,51,102,72,30,null,null,null,null,null,42,20,40]
["ОП.07","Операционные системы и среды",null,null,4,171,57,114,74,40,null,null,null,null,81,33]
["ОП.08","Архитектура электронно-вычислительных машин и вычислительных систем",null,6,null,174,58,116,76,40,null,null,null,null,34,42,20,20]
["ОП.09","Безопасность жизнедеятельности",null,3,null,102,34,68,48,20,null,null,null,null,null,68]
["ОП.10","Педагогика",null,null,8,186,62,124,84,40,null,null,null,null,null,null,null,null,64,60]
["ОП.11","Психология",null,null,8,186,62,124,84,40,null,null,null,null,null,null,null,null,64,60]
["ОП.12","Охрана труда",null,4,null,61,13,48,38,10,null,null,null,null,17,21,10]
["ОП.13","Инженерная графика",null,5,null,93,31,62,14,48,null,null,null,null,null,42,20]
["ОП.14","Web дизайн",8,null,null,138,46,92,32,60,null,null,null,null,null,null,null,null,32,60]
["ОП.15","Электротехника",null,null,4,123,41,82,52,30,null,null,null,null,null,42,20,20]
["ОП.16","Электронная техника",null,8,null,153,51,102,72,30,null,null,null,null,null,null,null,20,32,50]
["ОП.17","Микросхемотехника",null,7,null,147,49,98,68,30,null,null,null,null,null,null,10,40,48]
["ПМ.00","Профессиональные модули",null,null,null,{"$f":"F56+F60+F64+F68+F72","v":1922},{"$f":"G56+G60+G64+G68+G72","v":640},1282,648,634,60,{"$f":"L56+L60+L64+L68+L72","v":540},null,null,{"$f":"O56+O60+O64+O68+O72","v":234},{"$f":"P56+P60+P64+P68+P72","v":294},190,440,64,60]
["ПМ.01","Обработка отраслевой информации",null,null,"4 (к)",{"$f":"F57","v":279},{"$f":"G57","v":93},186,126,60,30,{"$f":"L58+L59","v":72},null,null,{"$f":"O57","v":102},{"$f":"P57","v":84},0,0,0,0]
["МДК.01.01","Обработка отраслевой информации",null,3,null,279,93,{"$f":"SUM(O57:T57)","v":186},126,60,null,null,null,null,102,84]
["УП.01","Учебная практика",4,null,null,null,null,null,null,null,null,{"$f":"P58","v":36},null,null,null,36]
["ПП.01","Производственная практика",4,null,null,null,null,null,null,null,null,{"$f":"P59","v":36},null,null,null,36]
["ПМ.02","Разработка, внедрение и адаптация программного обеспечения отраслевой информации",null,null,"6(к)",{"$f":"F61","v":686},{"$f":"G61","v":228},458,{"$f":"I61","v":198},{"$f":"J61","v":260},null,{"$f":"L62+L63","v":108},null,null,{"$f":"O61","v":132},{"$f":"P61","v":126},80,120,0,0]
["МДК.02.01","Разработка, внедрение и адаптация программного обеспечения отраслевой информации",null,null,5,{"$f":"686","v":686},228,{"$f":"SUM(O61:T61)","v":458},198,260,null,null,null,null,132,126,80,120]
["УП.02","Учебная практика",null,5,null,null,null,null,null,null,null,{"$f":"SUM(M62:T62)","v":72},null,null,null,null,72]
["ПП 02","Производственная практика",null,6,null,null,null,null,null,null,null,{"$f":"SUM(M63:T63)","v":36},null,null,null,null,null,36]
["ПМ.03","Сопровождение и продвижение программного обеспечения отраслевой направленности",null,null,"6(к)",{"$f":"F65","v":321},{"$f":"G65","v":107},214,144,70,null,{"$f":"SUM(L66:L67)","v":108},null,null,{"$f":"O65","v":0},{"$f":"P65","v":84},50,80,0,0]
["МДК.03.01","Сопровождение и продвижение программного обеспечения отраслевой направленности",null,null,4,321,107,{"$f":"SUM(O65:T65)","v":214},144,70,null,null,null,null,null,84,50,80]
["УП.03","Учебная практика",null,5,null,null,null,null,null,null,null,{"$f":"SUM(M66:T66)","v":72},null,null,null,null,72]
["ПП 03","Производственная практика",null,6,null,null,null,null,null,null,null,{"$f":"SUM(M67:T67)","v":36},null,null,null,null,null,36]
["ПМ.04","Обеспечение проектной деятельности",null,null,"6(к)",{"$f":"SUM(F69:F69)","v":450},{"$f":"SUM(G69:G69)","v":150},{"$f":"SUM(H69:H69)","v":300},{"$f":"SUM(I69:I69)","v":100},{"$f":"SUM(J69:J69)","v":200},30,{"$f":"L70+L71","v":144},null,null,{"$f":"O69","v":0},{"$f":"P69","v":0},60,240,0,0]
["МДК.04.01","Обеспечение проектной деятельности",null,null,5,{"$f":"ROUNDDOWN(H69*1.5,0)","v":450},150,{"$f":"SUM(O69:T69)","v":300},100,200,null,null,null,null,null,null,60,240]
["УП.04","Учебная практика",5,null,null,null,null,null,null,null,null,{"$f":"SUM(M70:T70)","v":72},null,null,null,null,72]
["ПП 04","Производственная практика",null,6,null,null,null,null,null,null,null,{"$f":"SUM(M71:T71)","v":72},null,null,null,null,null,72]
["ПМ.05","Методика преподавания информатики с практикумом",null,null,"8(к)",{"$f":"F73","v":186},{"$f":"G73","v":62},124,80,44,null,{"$f":"L74+L75","v":108},null,null,{"$f":"O73","v":0},{"$f":"P73","v":0},0,0,64,60]
["МДК.05.01","Методика преподавания информатики с практикумом",null,null,7,{"$f":"ROUNDDOWN(H73*1.5,0)","v":186},{"$f":"F73-H73","v":62},{"$f":"SUM(O73:T73)","v":124},80,44,null,null,null,null,null,null,null,null,64,60]
["УП.05","Учебная практика",null,8,null,null,null,null,null,null,null,{"$f":"SUM(M74:T74)","v":36},null,null,null,null,null,null,null,36]
["ПП.05","Производственная практика",null,8,null,null,null,null,null,null,null,{"$f":"SUM(M75:T75)","v":72},null,null,null,null,null,null,null,72]
["Всего",null,null,null,null,{"$f":"SUM(G76+H76)","v":6482},{"$f":"SUM(G36+G33+G28+G14)","v":1694},{"$f":"SUM(H36+H33+H28+H14)","v":4788},{"$f":"SUM(I36+I33+I28+I14)","v":1744},{"$f":"SUM(J36+J33+J28+J14)","v":1640},60,{"$f":"L55","v":540},{"$f":"SUM(M15:M75)","v":612},792,{"$f":"O27+O82+O83","v":612},{"$f":"P27+P82+P83","v":828},576,864,576,612]
["Кол-во часов в неделю",null,null,null,null,null,null,null,null,null,null,null,{"$f":"M14/M11","v":36},{"$f":"N14/N11","v":36},{"$f":"O27/O11","v":36},{"$f":"P27/P11","v":36},36,36,36,36]
["ПДП","Преддипломная практика ",null,null,null,null,null,null,null,null,null,null,null,null,null,null,null,null,null,144]
["ГИА","Государственная итоговая аттестация"]
["Консультации на учебную группу по 100 часов в год (всего 400 час.)",null,null,null,null,null,null,"Всего","дисциплин и МДК",null,null,null,{"$f":"(SUM(M15:M26))+M29+M30+M31+M32+M35+M38+M39+M40+M41+M42+M43+M44+M45+M46+M47+M48+M49+M50+M51+M52+M53+M54+M57+M61+M65+M69+M73","v":612},{"$f":"(SUM(N15:N26))+N29+N30+N31+N32+N35+N38+N39+N40+N41+N42+N43+N44+N45+N46+N47+N48+N49+N50+N51+N52+N53+N54+N57+N61+N65+N69+N73","v":792},{"$f":"O27","v":612},{"$f":"P27","v":756},360,720,576,360]
[]
["Государственная (итоговая) аттестация   216 часов",null,null,null,null,null,null,null,"учебной практики",null,null,null,{"$f":"M74+M70+M66+M62+M58","v":0},{"$f":"N74+N70+N66+N62+N58","v":0},0,36,216,0,0,36]
["1. Программа базовой подготовки ",null,null,null,null,null,null,null,"производств. практика/преддипломная практика",null,null,null,{"$f":"M78+M75+M71+M67+M63","v":0},{"$f":"N78+N75+N71+N67+N63","v":0},{"$f":"O78+O75+O71+O67+O63","v":0},{"$f":"P78+P75+P71+P67+P63+P59","v":36},{"$f":"Q78+Q75+Q71+Q67+Q63","v":0},{"$f":"R78+R75+R71+R67+R63","v":144},{"$f":"S78+S75+S71+S67+S63","v":0},{"$f":"T78+T75+T71+T67+T63","v":216}]
["1.1 Промежуточная аттестация (7 недель) 252"]
["1.2. Дипломный проект (работа)",null,null,null,null,null,null,null,"экзаменов",null,null,null,0,3,0,5,2,3,2,3]
["Выполнение дипломного проекта (работы) с 24.05 по 14.06  (всего 4 нед.)",null,null,null,null,null,null,null,"диф.зачетов",null,null,null,0,7,4,1,3,6,4,4]
["Защита дипломного проекта (работы)  с 15.06 по 28. 06 (всего 2)        ",null,null,null,null,null,null,null,"зачетов",null,null,null,2,0,2,3,1,0,0,2]

{"sheet":"Лист3","index":3,"n_rows":8,"n_cols":10,"rows_kept":8,"cut":false,"hidden":true,"merged":[[0,9,0,36]]}
[null,null,1,5]
["очная",null,2,10,"основного общего образования"]
["заочная",null,3,null,"начального профессионального образования",null,null,null,null,"по программе базовой подготовки"]
["очно-заочная",null,4,null,"среднего (полного) общего образования",null,null,null,null,"по программе углубленной подготовки"]
[null,null,5]
[null,null,6]
[null,null,0,null,null,null,null,null,null,"по  специальности среднего профессионального образования"]
[null,null,null,null,null,null,null,null,null,"по  профессии начального профессионального образования"]

{"sheet":"Перечень кабинетов","index":4,"n_rows":22,"n_cols":2,"rows_kept":22,"cut":false,"hidden":false,"merged":[]}
[null,"Перечень кабинетов, лабораторий, мастерских и др. для подготовки"]
[null," по специальности СПО"]
["№","Наименование"]
[null,"Кабинеты:"]
[1,"cоциально-экономических дисциплин;"]
[2,"иностранного языка;"]
[3,"математики;"]
[4,"документационного обеспечения управления;"]
[5,"теории информации;"]
[6,"операционных систем и сред;"]
[7,"архитектуры электронно-вычислительных машин и вычислительных систем;"]
[8,"безопасности жизнедеятельности и охраны труда."]
[null,"Лаборатории:"]
[1,"обработки информации отраслевой направленности;"]
[2,"разработки, внедрения и адаптации программного обеспечения отраслевой направленности."]
[null,"Спортивный комплекс:"]
[1,"спортивный зал;"]
[2,"спортивная площадка;"]
[3,"стрелковый тир (в любой модификации, включая электронный) или место для стрельбы"]
[null," Залы:"]
[1,"библиотека, читальный зал с выходом в сеть Интернет;"]
[2,"актовый зал"]

{"sheet":"Календарный график","index":5,"n_rows":39,"n_cols":54,"rows_kept":39,"cut":false,"hidden":false,"merged":[[16,42,16,48],[1,9,1,46],[3,1,5,1],[3,2,3,5],[3,7,3,9],[3,11,3,14],[3,15,3,18],[3,20,3,22],[3,24,3,27],[3,28,3,31],[3,33,3,35],[3,37,3,40],[3,41,3,44],[3,46,3,48],[3,50,3,53],[18,32,18,38],[14,3,14,27],[16,4,16,5],[16,7,16,14],[16,17,16,18],[16,20,16,28],[16,29,16,30],[16,32,16,35],[18,4,18,5],[18,7,18,14],[18,17,18,18],[18,20,18,28],[18,29,18,30],[11,49,11,53],[16,39,16,40]]}
[]
[null,null,null,null,null,null,null,null,null,"Календарный график учебного процесса"]
[]
[null,"Курс","Сентябрь",null,null,null,null,"Октябрь",null,null,null,"Ноябрь",null,null,null,"Декабрь",null,null,null,null,"Январь",null,null,null,"Февраль",null,null,null,"Март",null,null,null,null,"Апрель",null,null,null,"Май",null,null,null,"Июнь",null,null,null,null,"Июль",null,null,null,"Август"]
[null,null,2,9,16,23,30,7,14,21,28,4,11,18,25,2,9,16,23,30,6,13,20,27,3,10,17,24,10,17,24,23,31,7,14,21,28,5,12,19,26,2,9,16,23,30,7,14,21,28,4,11,18,25]
[null,null,8,15,22,29,6,13,20,27,3,10,17,24,1,8,15,22,29,5,12,19,26,2,9,16,23,2,16,23,30,29,6,13,20,27,4,11,18,25,1,8,15,22,29,6,13,20,27,3,10,17,24,31]
[null,1,null,null,null,null,null,null,null,null,null,null,null,null,null,null,null,null,null,"-","-",null,null,null,null,null,null,null,null,null,null,null,null,null,null,null,null,null,null,null,null,null,null,"А","А","-","-","-","-","-","-","-","-","-"]
[null,2,null,null,null,null,null,null,null,null,null,null,null,null,null,null,null,null,null,"-","-",null,null,null,null,null,null,null,null,null,null,null,null,null,null,null,null,null,null,null,null,null,"ОУ","ПП","А","-","-","-","-","-","-","-","-","-"]
[null,3,null,null,null,null,null,null,null,null,null,null,"ОУ","ОУ","ОУ","ОУ","ОУ","ОУ","А","-","-",null,null,null,null,null,null,null,null,null,null,null,null,null,null,null,null,null,null,null,null,"ПП","ПП","ПП","ПП","А","-","-","-","-","-","-","-","-"]
[null,4,null,null,null,null,null,null,null,null,null,null,null,null,null,null,null,null,"А","-","-",null,null,null,null,null,null,null,null,null,null,"ОУ","ПП","ПП","А","ПД","ПД","ПД","ПД","ИА","ИА","ИА","ИА","ИА","ИА"]
[null,null,1,2,3,4,5,6,7,8,9,10,11,12,13,14,15,16,17,18,19,20,21,22,23,24,25,26,27,28,29,30,31,32,33,34,35,36,37,38,39,40,41,42,43,44,45,46,47,48,49,50,51,52]
[null,null,1,2,3,4,5,6,7,8,9,10,11,12,13,14,15,16,17,null,null,1,2,3,4,5,6,7,8,9,10,11,12,13,14,15,16,17,18,19,20,21,22,23,24,25]
[]
[]
[null,null,null,"Условные обозначения"]
[]
[null,null,null,null,null,null,"-","Теоретическое обучение",null,null,null,null,null,null,null,null,null,"ПП",null,"-","Производственная практика",null,null,null,null,null,null,null,null,"-",null,"-","Каникулы",null,null,null,null,null,null,"ПД",null,"-","Преддипломная практика"]
[]
[null,null,null,null,"ОУ",null,"-","Учебная практика",null,null,null,null,null,null,null,null,null,"А",null,"-","Промежуточная атестация",null,null,null,null,null,null,null,null,"ИА",null,"-","Итоговая аттестация"]
[]
[]
[]
[]
[]
[null,null,null,null,null,null,null,null,null,null,null,null,null,null,null,null,null,null,null,null,null,null,null,null,null,null,null,null,null,null,null,null,null,null,null,null,","]
[]
[]
[]
[]
[]
[]
[]
[]
[]
[]
[]
[]
[]
[null,null,null,null,null,null,null,null,null,null,null,null,null,null,null,null,null,null,null,null,null,null,null,null,null,null,null,null,null,null,null,null,null,null,null,null,","]

{"sheet":"Лист1","index":6,"n_rows":0,"n_cols":0,"rows_kept":0,"cut":false,"hidden":true,"merged":[]}